bitfinex/quotes_SOLUSD_20240726
["timestamp","ask_amount","ask_price","bid_price","bid_amount"]
[1722008734775,13.11,181.67,181.62,13.11]
[1722008735678,13.11,181.68,181.62,13.11]
[1722008735981,1.37638307,181.67,181.62,13.11]
[1722008736271,13.11,181.69,181.63,13.11]
[1722008736460,20.0,181.68,181.65,13.11]
[1722008736978,20.0,181.68,181.64,13.11]
[1722008737166,20.0,181.68,181.63,13.11]
[1722008737675,20.0,181.68,181.64,18.6151]
[1722008738063,14.48618213,181.69,181.64,18.6151]
[1722008738260,14.48614108,181.7,181.64,18.6151]
[1722008738467,20.0,181.69,181.64,18.6151]
[1722008739179,21.37614332,181.69,181.64,18.6151]
[1722008739360,21.37614332,181.69,181.64,13.11]
[1722008739755,16.0471,181.71,181.64,13.11]
[1722008739756,33.11,181.7,181.64,13.11]
[1722008739955,34.48623725,181.7,181.64,13.11]
[1722008740156,13.11,181.69,181.63,18.6156]
[1722008740377,1.37628463,181.68,181.63,18.6156]
[1722008740693,13.11,181.69,181.63,13.11]
[1722008740694,1.3763054,181.67,181.63,13.11]
[1722008741190,13.11,181.69,181.63,18.6156]
[1722008741472,14.48627942,181.68,181.59,13.7669]
[1722008741679,14.4864307,181.67,181.61,18.6162]
[1722008741853,13.11,181.67,181.62,5.5059]
[1722008742058,13.11,181.68,181.62,18.6159]
[1722008742675,13.11,181.68,181.63,13.11]
[1722008743667,1.37638563,181.67,181.63,13.11]
[1722008743868,1.37638563,181.67,181.62,18.6159]
[1722008744079,14.48638563,181.67,181.62,13.11]
[1722008744276,1.37638563,181.67,181.62,18.6159]
[1722008744586,33.11,181.67,181.62,18.6159]
[1722008744784,1.37638752,181.66,181.61,32.3814]
[1722008745163,13.11,181.67,181.62,13.11]
[1722008745384,13.11,181.68,181.62,18.6159]
[1722008745583,20.0,181.67,181.62,18.6159]
[1722008745967,13.11,181.66,181.6,13.11]
[1722008746176,1.3765298,181.65,181.6,13.11]
[1722008746378,1.37652409,181.64,181.6,18.6164]
[1722008746865,1.37652355,181.65,181.6,18.6164]
[1722008747277,13.11,181.66,181.6,18.6164]
[1722008747482,14.48655769,181.66,181.6,18.6164]
[1722008748365,14.48655769,181.66,181.61,5.5062]
[1722008748565,14.48655769,181.66,181.6,18.6165]
[1722008749889,14.48655769,181.66,181.6,13.11]
[1722008750086,13.11,181.65,181.59,13.11]
[1722008750271,1.37662331,181.64,181.59,13.11]
[1722008750591,13.11,181.65,181.6,5.5065]
[1722008750788,14.48662413,181.65,181.6,18.6165]
[1722008750992,1.37662413,181.64,181.6,18.6165]
[1722008751192,20.0,181.67,181.6,18.6165]
[1722008751193,20.0,181.67,181.61,13.11]
[1722008751409,13.11,181.67,181.62,13.11]
[1722008751607,1.37650196,181.66,181.62,13.11]
[1722008751891,13.11,181.67,181.62,13.11]
[1722008752093,14.48650195,181.67,181.61,18.6161]
[1722008752495,14.48650195,181.67,181.62,5.5059]
[1722008752987,1.37653861,181.66,181.62,5.5059]
[1722008753185,1.37653302,181.65,181.62,5.5059]
[1722008754299,1.37653421,181.64,181.62,5.5059]
[1722008754475,13.11,181.67,181.62,5.5059]
[1722008754889,1.3765315,181.69,181.63,13.11]
[1722008755077,13.11,181.68,181.63,13.11]
[1722008755397,20.0,181.67,181.65,13.11]
[1722008755596,16.0471,181.71,181.66,13.11]
[1722008755783,20.0,181.7,181.66,13.11]
[1722008756385,20.0,181.7,181.65,13.11]
[1722008756775,20.0,181.7,181.66,13.11]
[1722008757395,20.0,181.7,181.65,13.11]
[1722008757592,5.504,181.69,181.6,5.5063]
[1722008757778,13.11,181.65,181.6,18.6163]
[1722008758091,13.11,181.66,181.6,18.6163]
[1722008758289,1.37653458,181.65,181.6,18.6163]
[1722008758675,13.11,181.67,181.61,13.11]
[1722008759781,13.11,181.67,181.61,18.6161]
[1722008760299,13.11,181.67,181.62,18.6159]
[1722008760677,13.11,181.67,181.62,13.11]
[1722008761901,13.11,181.67,181.61,13.11]
[1722008762095,13.11,181.66,181.6,18.6165]
[1722008762396,1.37650215,181.65,181.6,18.6165]
[1722008762607,14.48650215,181.65,181.6,18.6165]
[1722008762783,13.11,181.65,181.6,18.6165]
[1722008763106,13.11,181.66,181.6,18.6165]
[1722008763780,13.11,181.67,181.61,13.11]
[1722008767104,13.11,181.67,181.61,18.6162]
[1722008767314,6.88067464,181.68,181.6,5.5066]
[1722008767612,6.88067464,181.68,181.62,13.11]
[1722008767613,65.0,181.67,181.62,13.11]
[1722008767817,78.11,181.67,181.61,13.11]
[1722008768682,20.0,181.67,181.64,13.11]
[1722008768999,13.11,181.69,181.63,13.11]
[1722008769209,20.0,181.68,181.63,13.11]
[1722008769585,13.11,181.68,181.63,13.11]
[1722008769802,13.11,181.69,181.63,18.6156]
[1722008769986,1.37621685,181.68,181.63,18.6156]
[1722008770202,14.486266,181.67,181.62,13.11]
[1722008770587,1.376266,181.67,181.62,13.11]
[1722008770985,14.486266,181.67,181.61,32.3814]
[1722008771303,1.37638475,181.66,181.61,32.3814]
[1722008771688,13.11,181.67,181.61,32.3814]
[1722008771890,13.11,181.67,181.62,13.11]
[1722008772106,1.37637709,181.7,181.63,13.11]
[1722008772313,13.11,181.69,181.64,5.5053]
[1722008772527,14.48627926,181.68,181.62,18.6157]
[1722008772813,1.37637725,181.67,181.62,18.6157]
[1722008773714,13.11,181.68,181.62,18.6157]
[1722008774819,14.48637641,181.67,181.61,32.3815]
[1722008775020,14.48637641,181.67,181.61,26.8753]
[1722008775021,13.11,181.67,181.61,26.8753]
[1722008775805,13.11,181.67,181.61,32.3815]
[1722008776499,6.88043436,181.69,181.61,19.2715]
[1722008776695,13.11,181.66,181.61,19.2715]
[1722008777218,13.11,181.66,181.61,13.7653]
[1722008779290,13.11,181.63,181.54,15.1417]
[1722008779504,13.11,181.61,181.56,13.11]
[1722008779698,1.37683862,181.6,181.56,13.11]
[1722008779898,14.48683862,181.6,181.55,32.3881]
[1722008780104,1.3768431,181.59,181.55,32.3881]
[1722008780608,1.3768431,181.59,181.56,5.5078]
[1722008781191,1.3768431,181.59,181.55,26.8801]
[1722008781691,1.3768431,181.59,181.55,32.388]
[1722008781896,13.11,181.62,181.57,13.11]
[1722008783188,13.11,181.62,181.51,13.7726]
[1722008783388,1.37701698,181.61,181.51,13.7726]
[1722008783594,32.3914,181.64,181.52,13.11]
[1722008783595,13.11,181.57,181.52,13.11]
[1722008783815,1.37725829,181.56,181.52,13.11]
[1722008784105,14.48725829,181.56,181.5,13.11]
[1722008784595,13.11,181.55,181.5,13.11]
[1722008784798,1.37734477,181.54,181.5,13.11]
[1722008785407,13.11,181.51,181.47,0.7916266]
[1722008785592,15.7776,181.57,181.47,0.7916266]
[1722008785593,13.11,181.5,181.47,0.7916266]
[1722008786000,13.11,181.51,181.47,0.7916266]
[1722008787408,13.11,181.48,181.47,0.7916266]
[1722008787709,15.8917,181.49,181.47,0.7916266]
[1722008787911,13.11,181.48,181.47,0.7916266]
[1722008788591,29.0017,181.49,181.47,0.7916266]
[1722008788788,15.8917,181.49,181.47,0.7916266]
[1722008788995,29.0017,181.49,181.47,0.7916266]
[1722008789197,14.46774009,181.48,181.47,0.7916266]
[1722008789409,13.09,181.48,181.47,0.7916266]
[1722008791793,29.0017,181.49,181.47,0.7916266]
[1722008792091,13.11,181.48,181.47,0.7916266]
[1722008792499,18.6202,181.48,181.47,0.7916266]
[1722008792699,38.6202,181.48,181.47,0.7916266]
[1722008792996,33.11,181.48,181.47,0.7916266]
[1722008794140,38.6202,181.48,181.47,0.7916266]
[1722008794409,83.6202,181.48,181.47,0.7916266]
[1722008794993,70.5102,181.48,181.47,0.7916266]
[1722008795190,33.11,181.48,181.47,0.7916266]
[1722008795910,38.6202,181.48,181.47,0.7916266]
[1722008796132,70.5102,181.48,181.47,0.7916266]
[1722008796434,38.6202,181.48,181.47,0.7916266]
[1722008796616,33.11,181.48,181.47,0.7916266]
[1722008797336,83.6202,181.48,181.47,0.7916266]
[1722008799328,17.55535659,181.56,181.51,5.5092]
[1722008799499,13.11,181.58,181.53,5.5084]
[1722008799801,13.11,181.56,181.51,13.7726]
[1722008800003,13.11,181.53,181.47,20.0784266]
[1722008800199,13.11,181.52,181.47,27.6779266]
[1722008800402,46.1232,181.62,181.47,0.7916266]
[1722008800403,13.11,181.49,181.47,0.7916266]
[1722008800612,13.11,181.48,181.47,0.7916266]
[1722008801010,13.11,181.49,181.47,0.7916266]
[1722008801700,13.11,181.48,181.47,0.7916266]
[1722008803321,14.48791076,181.48,181.47,0.7916266]
[1722008803905,19.99811076,181.48,181.47,0.7916266]
[1722008805120,64.99811076,181.48,181.47,0.7916266]
[1722008805916,59.48791076,181.48,181.47,0.7916266]
[1722008806621,13.11,181.48,181.47,0.7916266]
[1722008806920,19.99825213,181.48,181.47,0.7916266]
[1722008807124,14.48805213,181.48,181.47,0.7916266]
[1722008807524,13.11,181.48,181.47,0.7916266]
[1722008810123,15.6039,181.53,181.47,0.7916266]
[1722008810325,13.11,181.53,181.48,13.11]
[1722008810510,13.11,181.56,181.5,13.11]
[1722008810715,13.11,181.56,181.51,13.11]
[1722008810919,13.11,181.55,181.49,13.11]
[1722008811111,13.11,181.55,181.5,13.11]
[1722008811312,13.11,181.56,181.51,13.11]
[1722008812507,13.11,181.56,181.5,13.11]
[1722008812703,18.6178,181.56,181.5,13.11]
[1722008813211,18.6178,181.56,181.51,13.11]
[1722008813910,13.11,181.55,181.49,13.11]
[1722008814231,18.6187,181.54,181.49,13.11]
[1722008814619,13.11,181.54,181.49,13.11]
[1722008814821,13.11,181.55,181.49,13.11]
[1722008815829,13.11,181.55,181.5,13.11]
[1722008818417,5.5078,181.56,181.47,6.3020266]
[1722008818418,5.5078,181.56,181.51,13.11]
[1722008819647,18.6175,181.57,181.51,13.11]
[1722008819840,5.5078,181.56,181.51,13.11]
[1722008820011,5.5081,181.55,181.51,13.11]
[1722008820214,13.11,181.57,181.51,13.11]
[1722008820428,13.11,181.57,181.52,13.11]
[1722008820911,18.6175,181.57,181.52,13.11]
[1722008821247,33.6991,181.58,181.53,13.11]
[1722008821424,5.5067,181.6,181.53,13.11]
[1722008821637,13.11,181.58,181.53,13.11]
[1722008821821,1.37712611,181.57,181.53,13.11]
[1722008822131,13.11,181.59,181.53,13.11]
[1722008822927,13.11,181.59,181.54,13.11]
[1722008823130,13.11,181.61,181.56,13.11]
[1722008823531,15.6657,181.62,181.53,1.10159361]
[1722008823532,34.2817,181.62,181.57,13.11]
[1722008823716,15.6657,181.62,181.57,13.11]
[1722008824143,15.6657,181.62,181.58,13.11]
[1722008824340,24.8249,181.63,181.58,13.11]
[1722008824341,5.5057,181.63,181.58,13.11]
[1722008824556,18.6154,181.64,181.58,13.11]
[1722008824738,18.6154,181.64,181.59,13.11]
[1722008825049,5.5057,181.63,181.59,13.11]
[1722008825426,5.5048,181.66,181.61,13.11]
[1722008825628,18.6148,181.66,181.61,13.11]
[1722008826516,5.5051,181.65,181.61,13.11]
[1722008827136,5.5051,181.65,181.6,13.11]
[1722008827137,5.5054,181.64,181.6,13.11]
[1722008827329,5.5054,181.64,181.59,13.11]
[1722008828229,18.6154,181.64,181.59,13.11]
[1722008828437,1.37669597,181.7,181.61,13.11]
[1722008828622,13.11,181.69,181.63,13.11]
[1722008828818,13.11,181.69,181.64,13.11]
[1722008829544,18.6136,181.7,181.64,13.11]
[1722008830443,5.5036,181.7,181.64,13.11]
[1722008830644,18.6136,181.7,181.64,13.11]
[1722008830829,5.5042,181.68,181.63,13.11]
[1722008831028,1.3763079,181.7,181.63,13.11]
[1722008831346,33.11,181.7,181.65,13.11]
[1722008831523,20.0,181.7,181.65,13.11]
[1722008831724,1.37614846,181.69,181.65,13.11]
[1722008831940,33.11,181.7,181.65,13.11]
[1722008832325,33.11,181.7,181.62,13.7645]
[1722008832326,13.11,181.69,181.64,13.11]
[1722008832539,1.37630963,181.68,181.63,13.11]
[1722008833133,6.88070559,181.67,181.62,13.11]
[1722008833333,19.99070559,181.67,181.61,13.11]
[1722008833570,13.11,181.67,181.61,13.11]
[1722008834245,13.11,181.67,181.62,13.11]
[1722008834627,1.37645322,181.68,181.63,13.11]
[1722008834628,14.48645322,181.68,181.63,13.11]
[1722008835134,1.37638826,181.69,181.64,13.11]
[1722008835742,13.11,181.68,181.63,13.11]
[1722008836549,18.6141,181.69,181.63,13.11]
[1722008837358,19.99058749,181.68,181.63,13.11]
[1722008837557,14.48639129,181.67,181.59,13.7671]
[1722008837738,13.11,181.64,181.59,13.11]
[1722008837941,14.48667202,181.64,181.59,13.11]
[1722008838466,5.506,181.62,181.58,13.11]
[1722008838634,13.11,181.6,181.53,13.7716]
[1722008838830,18.6166,181.6,181.54,13.11]
[1722008839070,13.11,181.6,181.54,13.11]
[1722008839242,13.11,181.6,181.55,13.11]
[1722008840561,13.11,181.6,181.54,13.11]
[1722008840863,14.48698155,181.59,181.51,5.5092]
[1722008841164,14.48698155,181.59,181.53,13.11]
[1722008841165,13.11,181.58,181.53,13.11]
[1722008841354,13.11,181.59,181.54,13.11]
[1722008841963,13.11,181.61,181.56,13.11]
[1722008842137,11.9981,181.62,181.52,13.772]
[1722008842338,6.4919,181.62,181.55,13.77]
[1722008842536,6.4919,181.62,181.55,19.278]
[1722008842942,1.37682156,181.61,181.55,13.77]
[1722008843144,1.3768597,181.6,181.52,13.7723]
[1722008843578,5.5065,181.61,181.52,13.7723]
[1722008843861,5.5069,181.59,181.5,26.26]
[1722008844050,1.37709821,181.58,181.5,26.26]
[1722008844550,1.37709821,181.58,181.49,13.7746]
[1722008844750,1.37709821,181.58,181.5,20.0]
[1722008845153,1.37709821,181.58,181.51,5.5092]
[1722008845541,1.37709004,181.57,181.51,5.5092]
[1722008845772,5.507,181.59,181.51,5.5092]
[1722008845952,6.88442955,181.58,181.49,19.2844]
[1722008846146,15.2404,181.56,181.47,32.5618266]
[1722008846356,1.37733655,181.55,181.47,6.3018266]
[1722008846536,1.37733637,181.54,181.47,0.7916266]
[1722008846736,5.5083,181.55,181.47,0.7916266]
[1722008846962,5.5081,181.55,181.47,0.7916266]
[1722008847738,5.5085,181.54,181.47,0.7916266]
[1722008848345,5.5087,181.53,181.47,0.7916266]
[1722008848573,1.3775568,181.52,181.47,0.7916266]
[1722008848864,1.37752444,181.51,181.47,0.7916266]
[1722008849262,1.37752444,181.53,181.47,0.7916266]
[1722008849764,5.5098,181.5,181.47,0.7916266]
[1722008849943,1.37776895,181.49,181.47,0.7916266]
[1722008850971,16.32,181.48,181.47,0.7916266]
[1722008851266,21.8302,181.48,181.47,0.7916266]
[1722008851852,23.20813735,181.48,181.47,0.7916266]
[1722008852055,68.20813735,181.48,181.47,0.7916266]
[1722008852266,94.82753735,181.48,181.47,0.7916266]
[1722008853655,48.4496,181.48,181.47,0.7916266]
[1722008854172,16.32,181.48,181.47,0.7916266]
[1722008855145,6.085,181.53,181.47,0.7916266]
[1722008855146,5.5096,181.5,181.47,0.7916266]
[1722008855343,5.5102,181.48,181.47,0.7916266]
[1722008855667,5.5099,181.5,181.47,0.7916266]
[1722008855847,5.5099,181.49,181.47,0.7916266]
[1722008856245,5.5102,181.48,181.47,0.7916266]
[1722008857760,50.5102,181.48,181.47,0.7916266]
[1722008858853,5.5102,181.48,181.47,0.7916266]
[1722008859871,1.37807662,181.51,181.47,0.7916266]
[1722008859872,5.5099,181.49,181.47,0.7916266]
[1722008860084,5.5096,181.5,181.47,0.7916266]
[1722008860380,1.377877,181.49,181.47,0.7916266]
[1722008860864,20.0,181.51,181.47,0.7916266]
[1722008861250,16.0844,181.52,181.47,0.7916266]
[1722008861753,5.5087,181.53,181.47,0.7916266]
[1722008862291,6.88655287,181.52,181.47,0.7916266]
[1722008862585,21.37769623,181.54,181.47,0.7916266]
[1722008862789,65.0,181.53,181.47,0.7916266]
[1722008863592,25.5088,181.53,181.47,0.7916266]
[1722008863771,5.5088,181.53,181.47,0.7916266]
[1722008864273,5.509,181.52,181.47,0.7916266]
[1722008864477,5.5098,181.5,181.47,0.7916266]
[1722008864656,1.37769626,181.55,181.47,0.7916266]
[1722008864856,35.2021,181.56,181.47,0.7916266]
[1722008864857,5.5086,181.54,181.47,0.7916266]
[1722008865056,15.2021,181.56,181.47,14.5677266]
[1722008865277,1.37721789,181.6,181.47,14.5677266]
[1722008865460,5.5072,181.58,181.49,5.5098]
[1722008865665,5.5069,181.6,181.5,6.6112695]
[1722008865873,5.5069,181.59,181.5,6.6112695]
[1722008866259,5.5072,181.58,181.5,6.6112695]
[1722008866465,20.0,181.67,181.5,6.6112695]
[1722008866466,5.5054,181.64,181.56,5.5077]
[1722008866678,5.5054,181.64,181.54,13.7704]
[1722008866976,5.5053,181.64,181.56,5.5078]
[1722008867148,5.5048,181.66,181.57,6.60877306]
[1722008867354,5.5048,181.66,181.57,5.5074]
[1722008867574,15.5835,181.67,181.55,1.10130801]
[1722008867575,5.5054,181.64,181.55,1.10130612]
[1722008867769,5.5054,181.64,181.56,1.10130753]
[1722008867964,16.96013781,181.67,181.54,40.0304]
[1722008868288,6.0932,181.68,181.51,6.4218]
[1722008868289,5.5038,181.69,181.57,26.26]
[1722008868582,5.5038,181.69,181.6,13.7663]
[1722008868767,5.5038,181.69,181.61,1.1011052]
[1722008868966,5.5035,181.71,181.61,1.1011052]
[1722008869157,5.5036,181.7,181.61,1.1011052]
[1722008869872,21.9004,181.72,181.63,13.7638]
[1722008870071,5.5036,181.7,181.61,6.6071052]
[1722008870463,5.5036,181.7,181.61,5.506]
[1722008871162,21.9004,181.72,181.6,13.7664]
[1722008871163,5.5039,181.69,181.6,13.7664]
[1722008871471,5.5035,181.7,181.61,6.60724286]
[1722008872259,5.5035,181.7,181.61,5.5062]
[1722008874184,1.37617944,181.69,181.61,5.5062]
[1722008874482,5.5035,181.7,181.62,5.5059]
[1722008874685,5.5033,181.71,181.62,5.5059]
[1722008875186,21.9004,181.72,181.63,6.60630259]
[1722008875481,20.0,181.71,181.63,5.5055]
[1722008875669,25.5033,181.71,181.62,5.5059]
[1722008876689,25.5033,181.71,181.63,5.5056]
[1722008876882,6.1512,181.76,181.63,1.10092353]
[1722008877272,5.5024,181.74,181.64,13.7628]
[1722008877478,6.1512,181.76,181.65,1.10074733]
[1722008877880,5.5033,181.71,181.63,26.26]
[1722008878389,5.5033,181.71,181.63,31.7656]
[1722008878598,5.503,181.72,181.63,31.7656]
[1722008879572,5.5026,181.73,181.64,6.60609734]
[1722008879771,5.5026,181.73,181.65,1.10074599]
[1722008879971,5.5026,181.73,181.64,5.5053]
[1722008880886,5.5024,181.74,181.65,6.60564824]
[1722008881085,25.5027,181.73,181.65,6.60564824]
[1722008881288,20.0,181.73,181.65,6.60564824]
[1722008881589,5.502,181.76,181.65,1.10074824]
[1722008881894,5.5009,181.79,181.7,5.5035]
[1722008882097,5.5009,181.79,181.71,1.10051175]
[1722008882391,5.5012,181.78,181.71,1.10051175]
[1722008882686,5.5008,181.8,181.71,1.10051175]
[1722008882889,5.5009,181.79,181.71,1.10051175]
[1722008883088,1.37559934,181.83,181.71,5.5031]
[1722008883290,5.5007,181.8,181.72,13.7572]
[1722008883689,5.5008,181.79,181.72,13.7572]
[1722008883888,5.5008,181.79,181.73,1.10039305]
[1722008884287,5.5006,181.8,181.73,1.10039305]
[1722008884492,5.4999,181.82,181.74,6.60261308]
[1722008884889,5.4995,181.84,181.75,1.10025215]
[1722008885089,5.499,181.85,181.76,5.5016]
[1722008885397,5.499,181.85,181.76,21.117]
[1722008885900,5.4988,181.86,181.77,6.60148183]
[1722008886096,5.4991,181.85,181.77,6.60148183]
[1722008886293,5.4991,181.85,181.77,1.10008183]
[1722008887498,5.4991,181.85,181.78,6.5373]
[1722008887688,5.4986,181.87,181.79,1.09999621]
[1722008887890,5.4986,181.87,181.78,12.0384]
[1722008887891,5.4986,181.87,181.8,1.09996149]
[1722008888082,5.4981,181.88,181.81,1.09996224]
[1722008888287,5.4981,181.88,181.79,5.5008]
[1722008888484,5.4985,181.87,181.79,5.5008]
[1722008888899,5.498,181.89,181.8,5.5004]
[1722008889079,25.4981,181.88,181.8,5.5004]
[1722008889277,5.4984,181.87,181.79,5.5008]
[1722008889482,20.0,181.86,181.78,25.7906]
[1722008890100,5.4984,181.87,181.78,25.7906]
[1722008890297,33.7443,181.9,181.78,6.5373]
[1722008890494,46.37501549,181.89,181.78,6.5373]
[1722008890883,5.4994,181.84,181.78,6.5373]
[1722008892404,5.5,181.82,181.76,15.6154]
[1722008892703,33.7459,181.88,181.76,15.6154]
[1722008892921,5.4991,181.85,181.77,1.10010701]
[1722008893417,5.4987,181.86,181.78,5.501]
[1722008893714,25.64150159,181.91,181.79,5.5008]
[1722008893715,21.26883323,181.91,181.79,5.5008]
[1722008893913,5.4983,181.88,181.79,5.5008]
[1722008894086,65.0,181.9,181.79,5.5008]
[1722008894087,25.4984,181.87,181.79,5.5008]
[1722008894693,5.4988,181.86,181.78,5.5011]
[1722008894896,5.4991,181.85,181.77,13.7529]
[1722008895115,20.0,181.87,181.76,15.6154]
[1722008895288,5.499,181.86,181.76,21.1168]
[1722008895489,25.4984,181.87,181.76,30.46904241]
[1722008895690,1.37482947,181.86,181.77,45.0]
[1722008895928,1.37482947,181.86,181.78,5.501]
[1722008896423,20.0,181.87,181.79,5.5007]
[1722008896596,25.4985,181.87,181.79,5.5007]
[1722008896798,5.4987,181.86,181.77,50.5013]
[1722008896993,5.4991,181.85,181.76,29.3691]
[1722008897208,5.4991,181.85,181.76,34.8707]
[1722008897402,5.4994,181.84,181.77,1.09995983]
[1722008897810,5.4996,181.84,181.74,11.5571]
[1722008898015,1.37518388,181.84,181.74,11.5571]
[1722008898195,5.4998,181.83,181.74,11.5571]
[1722008898389,20.0,181.87,181.75,13.7546]
[1722008898702,5.499,181.85,181.76,5.5015]
[1722008899035,5.4994,181.84,181.76,5.5015]
[1722008899325,41.37494264,181.88,181.75,13.7546]
[1722008899494,5.4997,181.83,181.75,13.7546]
[1722008899813,5.4997,181.83,181.75,19.2565]
[1722008900111,5.4997,181.83,181.75,13.7546]
[1722008900309,5.5,181.82,181.74,6.0548]
[1722008900509,5.5,181.82,181.75,1.10012394]
[1722008901592,5.5008,181.8,181.74,6.0548]
[1722008901788,5.5008,181.79,181.71,15.0076]
[1722008902407,1.3754783,181.78,181.71,15.0076]
[1722008902604,1.3754783,181.78,181.71,20.5108]
[1722008902809,5.5002,181.81,181.73,5.5023]
[1722008903202,20.0,181.8,181.72,13.7568]
[1722008903402,20.0,181.8,181.71,20.5105]
[1722008903812,5.5011,181.79,181.71,15.0076]
[1722008904193,5.5005,181.8,181.72,1.10044354]
[1722008904602,5.5008,181.79,181.71,20.5107]
[1722008905418,5.5008,181.79,181.72,1.10039121]
[1722008906024,13.7507,181.81,181.71,15.0076]
[1722008906201,5.5014,181.78,181.71,15.0076]
[1722008907111,21.37552576,181.8,181.67,15.5351]
[1722008907308,5.5017,181.76,181.67,21.0393]
[1722008907605,45.0,181.79,181.67,21.0393]
[1722008907606,5.502,181.75,181.67,21.0393]
[1722008907804,5.5017,181.77,181.67,15.5351]
[1722008908221,1.37563873,181.76,181.68,5.5041]
[1722008909103,5.5017,181.77,181.69,5.5037]
[1722008909305,5.5012,181.78,181.7,5.5035]
[1722008909513,20.0,181.77,181.72,5.5028]
[1722008909827,25.5007,181.8,181.71,19.2611]
[1722008910123,25.5007,181.8,181.72,1.10042856]
[1722008910517,5.5008,181.79,181.71,19.2611]
[1722008910811,20.0,181.78,181.71,13.7579]
[1722008911013,20.0,181.78,181.72,1.10041305]
[1722008911221,20.0,181.78,181.71,13.7579]
[1722008911222,25.5011,181.78,181.71,13.7579]
[1722008911421,1.37554743,181.77,181.7,5.5035]
[1722008911730,20.0,181.78,181.71,13.758]
[1722008911915,21.37554718,181.82,181.71,19.2612]
[1722008912108,45.0,181.81,181.71,19.2612]
[1722008912311,20.0,181.8,181.71,19.2612]
[1722008912823,5.4996,181.83,181.73,13.7561]
[1722008913120,28.9222,181.91,181.8,5.5004]
[1722008913321,5.4969,181.92,181.84,5.4993]
[1722008913530,5.4969,181.92,181.85,1.09962392]
[1722008913823,5.4969,181.92,181.84,1.09962594]
[1722008914004,6.3485,181.93,181.82,13.7496]
[1722008914213,5.4975,181.9,181.82,19.2495]
[1722008914425,5.4975,181.9,181.83,1.0997095]
[1722008914724,5.4975,181.9,181.82,13.7496]
[1722008915099,5.4979,181.89,181.8,31.7605]
[1722008915301,5.4984,181.87,181.79,13.752]
[1722008915701,5.499,181.86,181.76,19.2558]
[1722008915910,5.4991,181.85,181.76,19.2558]
[1722008916510,5.4991,181.85,181.77,5.5014]
[1722008917326,5.4981,181.88,181.77,1.09995072]
[1722008917530,20.0,181.87,181.8,5.5005]
[1722008918329,5.4979,181.89,181.8,5.5005]
[1722008918330,25.4981,181.88,181.8,5.5005]
[1722008918657,5.4984,181.87,181.79,5.5008]
[1722008918839,20.0,181.88,181.76,5.5016]
[1722008918840,21.37495246,181.88,181.76,5.5016]
[1722008919132,20.0,181.91,181.78,6.60096197]
[1722008919133,5.4988,181.86,181.78,6.60096197]
[1722008919344,5.4988,181.86,181.78,1.09996197]
[1722008919505,5.4988,181.86,181.78,6.60106197]
[1722008919705,5.4985,181.87,181.78,13.7527]
[1722008919928,5.4988,181.86,181.78,13.7527]
[1722008920119,6.87409489,181.85,181.77,5.5014]
[1722008920433,6.87409489,181.85,181.75,13.7549]
[1722008920434,5.4991,181.85,181.76,5.5016]
[1722008920811,5.4987,181.87,181.77,5.5013]
[1722008921012,20.0,181.86,181.75,13.7549]
[1722008921213,20.0,181.86,181.79,5.5008]
[1722008921610,25.4988,181.86,181.78,5.501]
[1722008921812,1.37501791,181.85,181.77,13.753]